[Event "*** Titled Tuesday Blitz"]
[Site "Chess.com"]
[Date "2020.05.19"]
[Round "10"]
[White "JustinWang1234"]
[Black "spectralsoul"]
[Result "0-1"]
[WhiteElo "2602"]
[BlackElo "2843"]
[TimeControl "180+1"]
[EndTime "13:58:41 PDT"]
[Termination "spectralsoul won by resignation"]

1. Nf3 {[%clk 0:03:00.9]} 1... c5 {[%clk 0:02:53.4]} 2. g3 {[%clk 0:02:59.4]}
2... Nc6 {[%clk 0:02:52.6]} 3. Bg2 {[%clk 0:02:56.2]} 3... e5 {[%clk 0:02:52.7]}
4. e4 {[%clk 0:02:54]} 4... Nf6 {[%clk 0:02:52.1]} 5. O-O {[%clk 0:02:48.1]}
5... Be7 {[%clk 0:02:51.5]} 6. d3 {[%clk 0:02:46.9]} 6... O-O {[%clk 0:02:51.4]}
7. Nc3 {[%clk 0:02:35.3]} 7... h6 {[%clk 0:02:50.7]} 8. Nd2 {[%clk 0:02:34.6]}
8... d6 {[%clk 0:02:49.4]} 9. a4 {[%clk 0:02:34.1]} 9... Be6 {[%clk 0:02:48.3]}
10. Nc4 {[%clk 0:02:29.9]} 10... d5 {[%clk 0:02:47]} 11. exd5 {[%clk 0:02:29.7]}
11... Nxd5 {[%clk 0:02:47.9]} 12. Bd2 {[%clk 0:02:12.2]} 12... Nb6 {[%clk
0:02:43.9]} 13. Nxb6 {[%clk 0:02:03.9]} 13... axb6 {[%clk 0:02:44.8]} 14. Re1
{[%clk 0:02:01.9]} 14... Bf6 {[%clk 0:02:35.4]} 15. Ne4 {[%clk 0:02:00]} 15...
Be7 {[%clk 0:02:34.7]} 16. Bc3 {[%clk 0:01:54.9]} 16... Qc7 {[%clk 0:02:30.1]}
17. Nd2 {[%clk 0:01:52.8]} 17... Rfd8 {[%clk 0:02:23.1]} 18. b3 {[%clk
0:01:30.6]} 18... f6 {[%clk 0:01:49.6]} 19. f4 {[%clk 0:01:20.6]} 19... Bd6
{[%clk 0:01:49.6]} 20. Bxc6 {[%clk 0:00:58.2]} 20... Qxc6 {[%clk 0:01:41.5]} 21.
fxe5 {[%clk 0:00:57]} 21... fxe5 {[%clk 0:01:42.4]} 22. Bxe5 {[%clk 0:00:49.9]}
22... Bxe5 {[%clk 0:01:27.6]} 23. Rxe5 {[%clk 0:00:50.8]} 23... Bh3 {[%clk
0:01:28.1]} 24. Qf3 {[%clk 0:00:43.7]} 24... Qd6 {[%clk 0:01:28.2]} 25. Rae1
{[%clk 0:00:39.4]} 25... Rf8 {[%clk 0:01:26.9]} 26. Qd5+ {[%clk 0:00:32.1]}
26... Qxd5 {[%clk 0:01:19.7]} 27. Rxd5 {[%clk 0:00:33]} 27... Rf6 {[%clk
0:01:11.7]} 28. Rde5 {[%clk 0:00:31.8]} 28... Kh7 {[%clk 0:01:02.8]} 29. Re8
{[%clk 0:00:23]} 29... Ra6 {[%clk 0:00:57.5]} 30. Ne4 {[%clk 0:00:21.9]} 30...
Rf3 {[%clk 0:00:53]} 31. Nf2 {[%clk 0:00:22]} 31... Bd7 {[%clk 0:00:49.8]} 32.
R8e3 {[%clk 0:00:22.4]} 32... Rf8 {[%clk 0:00:49]} 33. Ne4 {[%clk 0:00:21.5]}
33... Bh3 {[%clk 0:00:46.7]} 34. Nf2 {[%clk 0:00:21.2]} 34... Bd7 {[%clk
0:00:46.8]} 35. Re7 {[%clk 0:00:21.6]} 35... Bc6 {[%clk 0:00:46.9]} 36. Ne4
{[%clk 0:00:21.3]} 36... Ra5 {[%clk 0:00:43.4]} 37. Nd6 {[%clk 0:00:20.4]} 37...
Rf6 {[%clk 0:00:37.4]} 38. Ne8 {[%clk 0:00:19.7]} 38... Rg6 {[%clk 0:00:37]} 39.
Nc7 {[%clk 0:00:19.5]} 39... c4 {[%clk 0:00:33.4]} 40. dxc4 {[%clk 0:00:19]}
40... Rf5 {[%clk 0:00:32.3]} 41. Ne6 {[%clk 0:00:19.2]} 41... Rg4 {[%clk
0:00:20]} 42. Rf1 {[%clk 0:00:18.5]} 42... Rh5 {[%clk 0:00:16.4]} 43. Nf4 {[%clk
0:00:18.5]} 43... Rhg5 {[%clk 0:00:14.5]} 44. Rfe1 {[%clk 0:00:18.7]} 44... Rxf4
{[%clk 0:00:13.6]} 45. R7e5 {[%clk 0:00:18.7]} 45... Rfg4 {[%clk 0:00:13.7]} 46.
Rxg5 {[%clk 0:00:18.6]} 46... Rxg5 {[%clk 0:00:14.6]} 47. Re7 {[%clk 0:00:18.7]}
47... Rf5 {[%clk 0:00:14.3]} 48. Re3 {[%clk 0:00:17.7]} 48... Kg8 {[%clk
0:00:13.3]} 49. Re2 {[%clk 0:00:17.8]} 49... Rf3 {[%clk 0:00:13.1]} 50. Re5
{[%clk 0:00:17.1]} 50... Rc3 {[%clk 0:00:12.9]} 51. Re2 {[%clk 0:00:17.3]} 51...
Kf7 {[%clk 0:00:13.1]} 52. Kf2 {[%clk 0:00:17.4]} 52... g5 {[%clk 0:00:13.6]}
53. Ke1 {[%clk 0:00:17.8]} 53... Kf6 {[%clk 0:00:11.3]} 54. Rf2+ {[%clk
0:00:17.3]} 54... Ke5 {[%clk 0:00:09.6]} 55. Kd2 {[%clk 0:00:17.6]} 55... Rf3
{[%clk 0:00:10.1]} 56. Re2+ {[%clk 0:00:17.8]} 56... Kd4 {[%clk 0:00:10]} 57. g4
{[%clk 0:00:17]} 57... Rh3 {[%clk 0:00:09.4]} 58. Rf2 {[%clk 0:00:13.8]} 58...
Be4 {[%clk 0:00:09.3]} 59. Re2 {[%clk 0:00:12.7]} 59... Rh4 {[%clk 0:00:07.5]}
60. c3+ {[%clk 0:00:12.5]} 60... Ke5 {[%clk 0:00:08]} 61. c5 {[%clk 0:00:12]}
61... bxc5 {[%clk 0:00:07.9]} 62. b4 {[%clk 0:00:11.9]} 62... cxb4 {[%clk
0:00:08.1]} 63. cxb4 {[%clk 0:00:12.1]} 63... Rxg4 {[%clk 0:00:07.7]} 64. Kc3
{[%clk 0:00:12.6]} 64... Rh4 {[%clk 0:00:07.1]} 65. Kc4 {[%clk 0:00:12.5]} 65...
Rh3 {[%clk 0:00:06.7]} 66. Kb5 {[%clk 0:00:11.4]} 66... Kd4 {[%clk 0:00:07.1]}
67. Kb6 {[%clk 0:00:11.3]} 67... Ra3 {[%clk 0:00:06.1]} 68. a5 {[%clk
0:00:11.4]} 68... Ra4 {[%clk 0:00:06.3]} 69. b5 {[%clk 0:00:11]} 69... g4 {[%clk
0:00:06.5]} 70. Rd2+ {[%clk 0:00:11.2]} 70... Ke5 {[%clk 0:00:06.4]} 71. Rd8
{[%clk 0:00:10.2]} 71... h5 {[%clk 0:00:06.6]} 72. Re8+ {[%clk 0:00:10.6]} 72...
Kf4 {[%clk 0:00:06.6]} 73. Rh8 {[%clk 0:00:11.2]} 73... Kg5 {[%clk 0:00:06.7]}
74. Rg8+ {[%clk 0:00:10]} 74... Kh4 {[%clk 0:00:07.2]} 75. Rg7 {[%clk
0:00:10.3]} 75... Ra2 {[%clk 0:00:06.5]} 76. Rg8 {[%clk 0:00:09.4]} 76... Bf3
{[%clk 0:00:06.4]} 77. Rf8 {[%clk 0:00:09]} 77... Kh3 {[%clk 0:00:06.2]} 78. a6
{[%clk 0:00:09.1]} 78... bxa6 {[%clk 0:00:05.9]} 79. bxa6 {[%clk 0:00:09.1]}
79... Kxh2 {[%clk 0:00:06.3]} 80. a7 {[%clk 0:00:09.5]} 80... h4 {[%clk
0:00:06.5]} 81. Rf4 {[%clk 0:00:09]} 81... h3 {[%clk 0:00:06.2]} 82. Rf5 {[%clk
0:00:09.5]} 82... Kg3 {[%clk 0:00:06.5]} 83. Ra5 {[%clk 0:00:09.8]} 83... Rxa5
{[%clk 0:00:05.8]} 84. Kxa5 {[%clk 0:00:10.7]} 84... h2 {[%clk 0:00:06.5]} 85.
Kb6 {[%clk 0:00:11.3]} 85... h1=Q {[%clk 0:00:06.4]} 0-1

[Event "*** Titled Tuesday Blitz"]
[Site "Chess.com"]
[Date "2020.05.19"]
[Round "10"]
[White "mishikomchedlishvili"]
[Black "GoltsevDmitry2000"]
[Result "0-1"]
[WhiteElo "2824"]
[BlackElo "2607"]
[TimeControl "180+1"]
[EndTime "13:58:48 PDT"]
[Termination "GoltsevDmitry2000 won on time"]

1. d4 {[%clk 0:03:00.9]} 1... Nf6 {[%clk 0:02:59.2]} 2. Bg5 {[%clk 0:02:59.7]}
2... e6 {[%clk 0:02:59.2]} 3. e4 {[%clk 0:02:59]} 3... Be7 {[%clk 0:02:59.6]} 4.
e5 {[%clk 0:02:57]} 4... Nd5 {[%clk 0:02:59.4]} 5. Bxe7 {[%clk 0:02:56.8]} 5...
Nxe7 {[%clk 0:03:00.3]} 6. Nf3 {[%clk 0:02:55.3]} 6... b6 {[%clk 0:03:00.5]} 7.
Bd3 {[%clk 0:02:53.7]} 7... Bb7 {[%clk 0:03:00.8]} 8. Nc3 {[%clk 0:02:53.2]}
8... d6 {[%clk 0:03:00.9]} 9. Qe2 {[%clk 0:02:53.3]} 9... Nd7 {[%clk 0:03:00.8]}
10. O-O-O {[%clk 0:02:53.1]} 10... d5 {[%clk 0:03:00.2]} 11. Ng5 {[%clk
0:02:42.4]} 11... Nf5 {[%clk 0:02:43.1]} 12. Qg4 {[%clk 0:02:28.7]} 12... h5
{[%clk 0:01:25.1]} 13. Qf4 {[%clk 0:02:27.7]} 13... g6 {[%clk 0:01:25.6]} 14. h3
{[%clk 0:02:21.8]} 14... Qe7 {[%clk 0:01:10.5]} 15. Ne2 {[%clk 0:02:17.5]} 15...
c5 {[%clk 0:01:06.1]} 16. g4 {[%clk 0:02:02.5]} 16... Nxd4 {[%clk 0:01:01.5]}
17. Nxd4 {[%clk 0:02:02.4]} 17... cxd4 {[%clk 0:01:01.1]} 18. Bb5 {[%clk
0:02:02.5]} 18... O-O-O {[%clk 0:00:49.4]} 19. Bxd7+ {[%clk 0:01:50.4]} 19...
Rxd7 {[%clk 0:00:40.3]} 20. Nf3 {[%clk 0:01:41.1]} 20... Rc7 {[%clk 0:00:35.8]}
21. Nxd4 {[%clk 0:01:40.3]} 21... Ba6 {[%clk 0:00:35.7]} 22. Kb1 {[%clk
0:01:38]} 22... Kb7 {[%clk 0:00:35.2]} 23. g5 {[%clk 0:01:34.3]} 23... Rhc8
{[%clk 0:00:33.1]} 24. Rhe1 {[%clk 0:01:34.1]} 24... Rc4 {[%clk 0:00:31.6]} 25.
Re3 {[%clk 0:01:32.6]} 25... Qc7 {[%clk 0:00:30.3]} 26. c3 {[%clk 0:01:27.1]}
26... Qe7 {[%clk 0:00:29.3]} 27. Qf6 {[%clk 0:01:25.9]} 27... Qxf6 {[%clk
0:00:27.2]} 28. gxf6 {[%clk 0:01:21.7]} 28... R4c7 {[%clk 0:00:25.4]} 29. Kc2
{[%clk 0:01:20.5]} 29... Re8 {[%clk 0:00:22.8]} 30. Rg1 {[%clk 0:01:20.2]} 30...
Kc8 {[%clk 0:00:22.4]} 31. Kd2 {[%clk 0:01:20.3]} 31... Kd7 {[%clk 0:00:22.8]}
32. Reg3 {[%clk 0:01:20]} 32... Rg8 {[%clk 0:00:19.9]} 33. Ke3 {[%clk
0:01:19.7]} 33... Bc4 {[%clk 0:00:17.6]} 34. a3 {[%clk 0:01:16.4]} 34... a5
{[%clk 0:00:16.7]} 35. Kf4 {[%clk 0:01:15.6]} 35... Ba6 {[%clk 0:00:16.7]} 36.
Kg5 {[%clk 0:01:15.4]} 36... Rh8 {[%clk 0:00:17.1]} 37. h4 {[%clk 0:01:15.3]}
37... b5 {[%clk 0:00:14.8]} 38. Rd1 {[%clk 0:01:08.5]} 38... Rc4 {[%clk
0:00:13.6]} 39. b3 {[%clk 0:01:06.4]} 39... Rc7 {[%clk 0:00:12.3]} 40. Ne2
{[%clk 0:01:04.7]} 40... b4 {[%clk 0:00:11.6]} 41. Nd4 {[%clk 0:00:51.9]} 41...
bxc3 {[%clk 0:00:10.8]} 42. Rc1 {[%clk 0:00:51.6]} 42... Rhc8 {[%clk 0:00:08.7]}
43. Rc2 {[%clk 0:00:49.9]} 43... Ke8 {[%clk 0:00:09.2]} 44. Kh6 {[%clk
0:00:45.9]} 44... a4 {[%clk 0:00:09.6]} 45. b4 {[%clk 0:00:43.6]} 45... Rc4
{[%clk 0:00:09.7]} 46. Nf3 {[%clk 0:00:38.3]} 46... R8c7 {[%clk 0:00:09.6]} 47.
Kg7 {[%clk 0:00:35.8]} 47... d4 {[%clk 0:00:10]} 48. Ng5 {[%clk 0:00:35.8]}
48... R4c6 {[%clk 0:00:09.5]} 49. Ne4 {[%clk 0:00:14.4]} 49... d3 {[%clk
0:00:09.3]} 50. Rc1 {[%clk 0:00:12.1]} 50... d2 {[%clk 0:00:09.4]} 51. Ra1
{[%clk 0:00:11.9]} 51... c2 {[%clk 0:00:09.7]} 52. Nxd2 {[%clk 0:00:12]} 52...
c1=Q {[%clk 0:00:10.2]} 53. Rxc1 {[%clk 0:00:12.5]} 53... Rxc1 {[%clk
0:00:11.1]} 54. Ne4 {[%clk 0:00:12.9]} 54... R1c6 {[%clk 0:00:09.7]} 55. Nd6+
{[%clk 0:00:12.3]} 55... Rxd6 {[%clk 0:00:10.1]} 56. exd6 {[%clk 0:00:12.6]}
56... Rd7 {[%clk 0:00:10.5]} 57. Rg5 {[%clk 0:00:11.2]} 57... Rxd6 {[%clk
0:00:10.4]} 58. Ra5 {[%clk 0:00:11.2]} 58... Rb6 {[%clk 0:00:09.6]} 59. Rc5
{[%clk 0:00:10.6]} 59... Rd6 {[%clk 0:00:08.5]} 60. Rc7 {[%clk 0:00:10.3]} 60...
Rd7 {[%clk 0:00:08.9]} 61. Rc6 {[%clk 0:00:10.6]} 61... Ra7 {[%clk 0:00:09.3]}
62. Rb6 {[%clk 0:00:10.1]} 62... Bc4 {[%clk 0:00:08]} 63. Rb8+ {[%clk
0:00:09.1]} 63... Kd7 {[%clk 0:00:08.5]} 64. Kxf7 {[%clk 0:00:09.3]} 64... e5+
{[%clk 0:00:08.4]} 65. Kxg6 {[%clk 0:00:09.4]} 65... Kd6 {[%clk 0:00:08.8]} 66.
Rb6+ {[%clk 0:00:06.4]} 66... Kc7 {[%clk 0:00:07]} 0-1

[Event "*** Titled Tuesday Blitz"]
[Site "Chess.com"]
[Date "2020.05.19"]
[Round "10"]
[White "MPGM"]
[Black "Djager97"]
[Result "1-0"]
[WhiteElo "2525"]
[BlackElo "2374"]
[TimeControl "180+1"]
[EndTime "13:59:21 PDT"]
[Termination "MPGM won by checkmate"]

1. d4 {[%clk 0:03:00.9]} 1... d5 {[%clk 0:02:59.9]} 2. c4 {[%clk 0:03:00.8]}
2... e6 {[%clk 0:03:00.1]} 3. Nc3 {[%clk 0:03:01]} 3... c6 {[%clk 0:03:00.2]} 4.
Nf3 {[%clk 0:02:59.5]} 4... dxc4 {[%clk 0:03:00.1]} 5. e3 {[%clk 0:02:57.8]}
5... b5 {[%clk 0:03:00.2]} 6. a4 {[%clk 0:02:57.3]} 6... Bb4 {[%clk 0:03:00.1]}
7. Bd2 {[%clk 0:02:57.8]} 7... a5 {[%clk 0:03:00.1]} 8. axb5 {[%clk 0:02:58.4]}
8... Bxc3 {[%clk 0:02:59.9]} 9. Bxc3 {[%clk 0:02:58.8]} 9... cxb5 {[%clk
0:03:00.5]} 10. b3 {[%clk 0:02:58.5]} 10... Bb7 {[%clk 0:03:01.1]} 11. Bb2
{[%clk 0:02:51.7]} 11... Nf6 {[%clk 0:02:54.9]} 12. bxc4 {[%clk 0:02:50.2]}
12... b4 {[%clk 0:02:55.3]} 13. Bd3 {[%clk 0:02:49.7]} 13... O-O {[%clk
0:02:54.5]} 14. O-O {[%clk 0:02:50.1]} 14... Nbd7 {[%clk 0:02:48.8]} 15. Nd2
{[%clk 0:02:50.4]} 15... Qc7 {[%clk 0:02:47.5]} 16. f4 {[%clk 0:02:50]} 16... a4
{[%clk 0:02:40.6]} 17. Rb1 {[%clk 0:02:34.2]} 17... Rfd8 {[%clk 0:02:26.1]} 18.
Qe2 {[%clk 0:02:32.1]} 18... b3 {[%clk 0:01:58.7]} 19. Ba1 {[%clk 0:02:23.8]}
19... Nb8 {[%clk 0:01:55.7]} 20. e4 {[%clk 0:02:23.2]} 20... Nc6 {[%clk
0:01:48.6]} 21. d5 {[%clk 0:02:19.6]} 21... exd5 {[%clk 0:01:25.7]} 22. cxd5
{[%clk 0:02:17.8]} 22... Qb6+ {[%clk 0:01:25.2]} 23. Kh1 {[%clk 0:02:17.6]}
23... Nb4 {[%clk 0:01:25.2]} 24. Nc4 {[%clk 0:02:13.9]} 24... Qa6 {[%clk
0:01:15.9]} 25. Rf3 {[%clk 0:01:58.4]} 25... Nxd3 {[%clk 0:01:14.7]} 26. Qxd3
{[%clk 0:01:57.2]} 26... Nxd5 {[%clk 0:01:10.6]} 27. exd5 {[%clk 0:01:53.8]}
27... Bxd5 {[%clk 0:01:10.1]} 28. Qc3 {[%clk 0:01:50.2]} 28... Qg6 {[%clk
0:01:01.7]} 29. Rg1 {[%clk 0:01:42.7]} 29... f6 {[%clk 0:00:23.8]} 30. Rg3
{[%clk 0:01:39.8]} 30... Qf7 {[%clk 0:00:23.8]} 31. Nb6 {[%clk 0:01:34.7]} 31...
Rab8 {[%clk 0:00:22.7]} 32. Nxd5 {[%clk 0:01:34.6]} 32... Rxd5 {[%clk
0:00:23.2]} 33. Bb2 {[%clk 0:01:10.4]} 33... Rbd8 {[%clk 0:00:22.9]} 34. h3
{[%clk 0:01:07.3]} 34... Rd2 {[%clk 0:00:20.3]} 35. Qxf6 {[%clk 0:01:04]} 35...
Qxf6 {[%clk 0:00:17.2]} 36. Bxf6 {[%clk 0:01:04.9]} 36... R8d7 {[%clk
0:00:16.6]} 37. Be5 {[%clk 0:01:01.7]} 37... b2 {[%clk 0:00:11.6]} 38. Kh2
{[%clk 0:01:02.3]} 38... Rb7 {[%clk 0:00:10.4]} 39. Rb1 {[%clk 0:00:58.8]} 39...
Rc2 {[%clk 0:00:10.8]} 40. Ra3 {[%clk 0:00:55.2]} 40... g5 {[%clk 0:00:08.8]}
41. Rxa4 {[%clk 0:00:53.2]} 41... gxf4 {[%clk 0:00:08.2]} 42. Rxf4 {[%clk
0:00:54.1]} 42... Rb5 {[%clk 0:00:06.9]} 43. Bd4 {[%clk 0:00:50]} 43... Rb4
{[%clk 0:00:06]} 44. Rbf1 {[%clk 0:00:50]} 44... Rxd4 {[%clk 0:00:02.5]} 45.
Rxd4 {[%clk 0:00:49.5]} 45... Rc1 {[%clk 0:00:03.4]} 46. Rd8+ {[%clk 0:00:41.4]}
46... Kg7 {[%clk 0:00:03.2]} 47. Rd7+ {[%clk 0:00:40.4]} 47... Kg6 {[%clk
0:00:03.3]} 48. Rd6+ {[%clk 0:00:36.7]} 48... Kg7 {[%clk 0:00:03.7]} 49. Rd7+
{[%clk 0:00:28.7]} 49... Kg6 {[%clk 0:00:03.1]} 50. Rdd1 {[%clk 0:00:29.3]}
50... b1=Q {[%clk 0:00:02.9]} 51. Rxc1 {[%clk 0:00:29.8]} 51... Qb8+ {[%clk
0:00:03.6]} 52. Kh1 {[%clk 0:00:28.3]} 52... Qe5 {[%clk 0:00:04.3]} 53. Rf3
{[%clk 0:00:28]} 53... Qe4 {[%clk 0:00:04.3]} 54. Rcf1 {[%clk 0:00:28.5]} 54...
Kg7 {[%clk 0:00:04.1]} 55. Kh2 {[%clk 0:00:28.8]} 55... Kg6 {[%clk 0:00:04.2]}
56. Rg3+ {[%clk 0:00:29.2]} 56... Kh6 {[%clk 0:00:03.5]} 57. Rg4 {[%clk
0:00:28.7]} 57... Qe5+ {[%clk 0:00:03.7]} 58. Kh1 {[%clk 0:00:27.5]} 58... Qd5
{[%clk 0:00:04.2]} 59. Rf6+ {[%clk 0:00:24.1]} 59... Kh5 {[%clk 0:00:03.6]} 60.
Rff4 {[%clk 0:00:24.3]} 60... Qd1+ {[%clk 0:00:03.4]} 61. Kh2 {[%clk 0:00:24.6]}
61... Qd6 {[%clk 0:00:04.1]} 62. Kg1 {[%clk 0:00:16.3]} 62... Qd1+ {[%clk
0:00:04]} 63. Rf1 {[%clk 0:00:16.9]} 63... Qd6 {[%clk 0:00:03.2]} 64. Rf5+
{[%clk 0:00:15.9]} 64... Kh6 {[%clk 0:00:03.1]} 65. Rf3 {[%clk 0:00:11.7]} 65...
Qd1+ {[%clk 0:00:02.9]} 66. Kf2 {[%clk 0:00:12]} 66... Qd2+ {[%clk 0:00:02.9]}
67. Kg3 {[%clk 0:00:12.9]} 67... Qd6+ {[%clk 0:00:03]} 68. Rgf4 {[%clk
0:00:13.1]} 68... Kg6 {[%clk 0:00:02.8]} 69. Kg4 {[%clk 0:00:12.6]} 69... Qe6+
{[%clk 0:00:03]} 70. Kg3 {[%clk 0:00:12.3]} 70... Qe5 {[%clk 0:00:03.1]} 71. Kh2
{[%clk 0:00:12.8]} 71... Qd6 {[%clk 0:00:03.1]} 72. g3 {[%clk 0:00:12.2]} 72...
Qd2+ {[%clk 0:00:03.2]} 73. Rf2 {[%clk 0:00:12.7]} 73... Qd3 {[%clk 0:00:03.6]}
74. Rg4+ {[%clk 0:00:13.3]} 74... Kh5 {[%clk 0:00:02.8]} 75. Rgf4 {[%clk
0:00:10.7]} 75... Kg6 {[%clk 0:00:02.8]} 76. Rf6+ {[%clk 0:00:10.3]} 76... Kg7
{[%clk 0:00:03]} 77. h4 {[%clk 0:00:10]} 77... Qd4 {[%clk 0:00:02.8]} 78. R6f4
{[%clk 0:00:09.5]} 78... Qe5 {[%clk 0:00:03]} 79. g4 {[%clk 0:00:09.6]} 79...
Qd5 {[%clk 0:00:03.3]} 80. g5 {[%clk 0:00:10]} 80... Qe5 {[%clk 0:00:03.8]} 81.
Kg3 {[%clk 0:00:10.3]} 81... Qd6 {[%clk 0:00:04.1]} 82. Kg4 {[%clk 0:00:10.5]}
82... Qe6+ {[%clk 0:00:04.1]} 83. Rf5 {[%clk 0:00:10.7]} 83... Qe4+ {[%clk
0:00:04.3]} 84. Kg3 {[%clk 0:00:11.1]} 84... Qe3+ {[%clk 0:00:04.5]} 85. R2f3
{[%clk 0:00:11.4]} 85... Qg1+ {[%clk 0:00:04.6]} 86. Kf4 {[%clk 0:00:12]} 86...
Qd4+ {[%clk 0:00:04.7]} 87. Kg3 {[%clk 0:00:12.3]} 87... Qg1+ {[%clk 0:00:04.9]}
88. Kh3 {[%clk 0:00:13]} 88... Qh1+ {[%clk 0:00:05.3]} 89. Kg4 {[%clk
0:00:13.6]} 89... Qg2+ {[%clk 0:00:03.6]} 90. Kh5 {[%clk 0:00:13.2]} 90... Qe2
{[%clk 0:00:03.9]} 91. Rf7+ {[%clk 0:00:12.8]} 91... Kg8 {[%clk 0:00:04.1]} 92.
Kh6 {[%clk 0:00:13]} 92... Qe4 {[%clk 0:00:02.5]} 93. Rf8# {[%clk 0:00:12.6]}
1-0